[Event "*** Titled Tuesday Blitz"]
[Site "Chess.com"]
[Date "2020.04.28"]
[Round "3"]
[White "avantage_ru"]
[Black "Igor_Lysyj"]
[Result "1-0"]
[WhiteElo "2634"]
[BlackElo "2790"]
[TimeControl "180+1"]
[EndTime "10:30:59 PDT"]
[Termination "avantage_ru won by resignation"]

1. e4 {[%clk 0:03:00.9]} 1... e5 {[%clk 0:02:58.8]} 2. Nf3 {[%clk 0:03:00.3]}
2... Nc6 {[%clk 0:02:58.4]} 3. Bb5 {[%clk 0:03:00]} 3... a6 {[%clk 0:02:58]} 4.
Ba4 {[%clk 0:03:00]} 4... Nf6 {[%clk 0:02:57.9]} 5. O-O {[%clk 0:03:00.1]} 5...
Bc5 {[%clk 0:02:57.7]} 6. Bxc6 {[%clk 0:02:59.7]} 6... dxc6 {[%clk 0:02:57.1]}
7. d3 {[%clk 0:02:59.7]} 7... Nd7 {[%clk 0:02:50.5]} 8. b3 {[%clk 0:02:58]} 8...
O-O {[%clk 0:02:48.3]} 9. Bb2 {[%clk 0:02:58.1]} 9... f6 {[%clk 0:02:44.6]} 10.
Nbd2 {[%clk 0:02:55.1]} 10... Re8 {[%clk 0:02:42.9]} 11. Nh4 {[%clk 0:02:49.3]}
11... Nf8 {[%clk 0:02:42.6]} 12. Nf5 {[%clk 0:02:46.6]} 12... Ng6 {[%clk
0:02:34.4]} 13. Kh1 {[%clk 0:02:45.5]} 13... Be6 {[%clk 0:02:32.9]} 14. Nc4
{[%clk 0:02:37.8]} 14... Qd7 {[%clk 0:02:29.8]} 15. Nce3 {[%clk 0:02:37.4]}
15... Ne7 {[%clk 0:02:21.9]} 16. Nxe7+ {[%clk 0:02:36.4]} 16... Rxe7 {[%clk
0:02:19.2]} 17. Qe2 {[%clk 0:02:33.5]} 17... Ree8 {[%clk 0:02:18.3]} 18. f4
{[%clk 0:02:25]} 18... exf4 {[%clk 0:02:14]} 19. Rxf4 {[%clk 0:02:25]} 19... Bd4
{[%clk 0:02:12.4]} 20. Bxd4 {[%clk 0:02:22.4]} 20... Qxd4 {[%clk 0:02:11.9]} 21.
Raf1 {[%clk 0:02:21.4]} 21... a5 {[%clk 0:02:12.1]} 22. g4 {[%clk 0:02:14]}
22... a4 {[%clk 0:02:08.3]} 23. Nf5 {[%clk 0:02:13.9]} 23... Qc3 {[%clk
0:02:04.8]} 24. R4f2 {[%clk 0:02:08.7]} 24... axb3 {[%clk 0:02:03.7]} 25. axb3
{[%clk 0:02:08.7]} 25... Ra1 {[%clk 0:02:00.7]} 26. Rxa1 {[%clk 0:02:00.9]}
26... Qxa1+ {[%clk 0:02:00.3]} 27. Rf1 {[%clk 0:01:59.9]} 27... Qc3 {[%clk
0:01:58]} 28. Qg2 {[%clk 0:01:51]} 28... Ra8 {[%clk 0:01:51.6]} 29. Ne3 {[%clk
0:01:47.4]} 29... Qd4 {[%clk 0:01:46.4]} 30. Qf3 {[%clk 0:01:41]} 30... Qe5
{[%clk 0:01:42.1]} 31. Kg2 {[%clk 0:01:36.6]} 31... Ra2 {[%clk 0:01:39.1]} 32.
Rf2 {[%clk 0:01:36.2]} 32... Ra1 {[%clk 0:01:38.3]} 33. Qf4 {[%clk 0:01:31.1]}
33... Qxf4 {[%clk 0:01:23.5]} 34. Rxf4 {[%clk 0:01:30.7]} 34... h6 {[%clk
0:01:23]} 35. h4 {[%clk 0:01:29.4]} 35... b6 {[%clk 0:01:21]} 36. Rf2 {[%clk
0:01:27.8]} 36... c5 {[%clk 0:01:17.5]} 37. Kg3 {[%clk 0:01:26.1]} 37... Rg1+
{[%clk 0:01:14.9]} 38. Rg2 {[%clk 0:01:25.7]} 38... Re1 {[%clk 0:01:13.6]} 39.
Kf4 {[%clk 0:01:23.6]} 39... Kf7 {[%clk 0:01:09.8]} 40. h5 {[%clk 0:01:23.4]}
40... Ra1 {[%clk 0:01:05.7]} 41. Rf2 {[%clk 0:01:21.8]} 41... Ke7 {[%clk
0:01:04.4]} 42. Rf1 {[%clk 0:01:21]} 42... Ra2 {[%clk 0:01:00.7]} 43. Rc1 {[%clk
0:01:17]} 43... Kf7 {[%clk 0:00:55.3]} 44. Nf5 {[%clk 0:01:16.6]} 44... Bxf5
{[%clk 0:00:54]} 45. gxf5 {[%clk 0:01:16]} 45... Ke7 {[%clk 0:00:52.9]} 46. Ke3
{[%clk 0:01:16]} 46... Kf7 {[%clk 0:00:52]} 47. Kd2 {[%clk 0:01:15.9]} 47... Ke7
{[%clk 0:00:49.8]} 48. Kc3 {[%clk 0:01:15]} 48... c6 {[%clk 0:00:49]} 49. Kc4
{[%clk 0:01:13.5]} 49... Kf7 {[%clk 0:00:46.7]} 50. Kc3 {[%clk 0:01:12.8]} 50...
Ke7 {[%clk 0:00:46.3]} 51. Rb1 {[%clk 0:01:12]} 51... Kf7 {[%clk 0:00:45]} 52.
Rg1 {[%clk 0:01:08.6]} 52... Kf8 {[%clk 0:00:39.9]} 53. Rc1 {[%clk 0:01:03.1]}
53... Kf7 {[%clk 0:00:39.3]} 54. Kc4 {[%clk 0:01:01.2]} 54... Ke7 {[%clk
0:00:37.9]} 55. b4 {[%clk 0:01:00.9]} 55... Ra4 {[%clk 0:00:30.7]} 56. Rb1
{[%clk 0:01:00.1]} 56... Kf7 {[%clk 0:00:23.8]} 57. c3 {[%clk 0:00:57.1]} 57...
cxb4 {[%clk 0:00:18.9]} 58. Rxb4 {[%clk 0:00:56.4]} 58... b5+ {[%clk 0:00:19.3]}
59. Kb3 {[%clk 0:00:43.7]} 59... Ra1 {[%clk 0:00:18.2]} 60. c4 {[%clk
0:00:37.3]} 60... bxc4+ {[%clk 0:00:08.9]} 61. Rxc4 {[%clk 0:00:34.4]} 61... Ra6
{[%clk 0:00:08.6]} 62. Rb4 {[%clk 0:00:28]} 62... Ra7 {[%clk 0:00:08.1]} 63. Kc4
{[%clk 0:00:27.5]} 63... Rd7 {[%clk 0:00:07.9]} 64. d4 {[%clk 0:00:27.1]} 64...
Ra7 {[%clk 0:00:06.9]} 65. Kc5 {[%clk 0:00:24.9]} 65... Re7 {[%clk 0:00:06.9]}
66. d5 {[%clk 0:00:24.9]} 66... cxd5 {[%clk 0:00:07.1]} 67. exd5 {[%clk
0:00:25.1]} 67... Re1 {[%clk 0:00:07]} 68. Rb7+ {[%clk 0:00:23.8]} 68... Kf8
{[%clk 0:00:06.6]} 69. d6 {[%clk 0:00:23.8]} 69... Rc1+ {[%clk 0:00:06.8]} 70.
Kd5 {[%clk 0:00:23.9]} 70... Rd1+ {[%clk 0:00:07]} 71. Ke6 {[%clk 0:00:24]}
71... Re1+ {[%clk 0:00:07]} 72. Kd7 {[%clk 0:00:24.2]} 72... Rf1 {[%clk
0:00:05.8]} 73. Kc8 {[%clk 0:00:23.6]} 73... Rc1+ {[%clk 0:00:05.5]} 74. Rc7
{[%clk 0:00:23.2]} 74... Ra1 {[%clk 0:00:05.5]} 75. d7 {[%clk 0:00:21.5]} 75...
Ra8+ {[%clk 0:00:05.3]} 76. Kb7 {[%clk 0:00:21.5]} 76... Rd8 {[%clk 0:00:05.8]}
77. Rc8 {[%clk 0:00:21.1]} 77... Ke7 {[%clk 0:00:05.5]} 78. Rxd8 {[%clk
0:00:21.2]} 78... Kxd8 {[%clk 0:00:05.6]} 79. Kc6 {[%clk 0:00:21.8]} 1-0

[Event "*** Titled Tuesday Blitz"]
[Site "Chess.com"]
[Date "2020.04.28"]
[Round "3"]
[White "Warerman"]
[Black "floplover"]
[Result "0-1"]
[WhiteElo "2442"]
[BlackElo "2244"]
[TimeControl "180+1"]
[EndTime "10:31:03 PDT"]
[Termination "floplover won on time"]

1. d4 {[%clk 0:02:57]} 1... Nf6 {[%clk 0:02:59.5]} 2. c4 {[%clk 0:02:55.5]} 2...
e6 {[%clk 0:03:00.4]} 3. Nc3 {[%clk 0:02:55.4]} 3... Bb4 {[%clk 0:02:59.9]} 4.
e3 {[%clk 0:02:55.7]} 4... c5 {[%clk 0:02:58.4]} 5. Bd3 {[%clk 0:02:55.7]} 5...
O-O {[%clk 0:02:56.8]} 6. Nf3 {[%clk 0:02:55.9]} 6... d5 {[%clk 0:02:56.9]} 7.
O-O {[%clk 0:02:55.8]} 7... cxd4 {[%clk 0:02:55.5]} 8. exd4 {[%clk 0:02:55.7]}
8... dxc4 {[%clk 0:02:55.8]} 9. Bxc4 {[%clk 0:02:55.7]} 9... h6 {[%clk
0:02:56.2]} 10. Qb3 {[%clk 0:02:50.2]} 10... Nc6 {[%clk 0:02:53.6]} 11. Rd1
{[%clk 0:02:48.8]} 11... Bd6 {[%clk 0:02:22.9]} 12. Qc2 {[%clk 0:02:34.6]} 12...
b6 {[%clk 0:02:13.7]} 13. h3 {[%clk 0:02:26.1]} 13... Bb7 {[%clk 0:02:13.2]} 14.
Qe2 {[%clk 0:02:24.7]} 14... Nb4 {[%clk 0:02:11.1]} 15. a3 {[%clk 0:02:20.8]}
15... Nbd5 {[%clk 0:02:10.3]} 16. Ne5 {[%clk 0:01:53.5]} 16... Nxc3 {[%clk
0:01:56.5]} 17. bxc3 {[%clk 0:01:52.7]} 17... Rc8 {[%clk 0:01:57]} 18. Bf4
{[%clk 0:01:15]} 18... Nd5 {[%clk 0:01:50.5]} 19. Bd2 {[%clk 0:01:11.4]} 19...
Bxe5 {[%clk 0:01:39.7]} 20. dxe5 {[%clk 0:01:10.2]} 20... Qc7 {[%clk 0:01:37]}
21. Bxd5 {[%clk 0:01:01.7]} 21... Bxd5 {[%clk 0:01:37.6]} 22. Qg4 {[%clk
0:01:00.6]} 22... Qxe5 {[%clk 0:01:28]} 23. Bxh6 {[%clk 0:00:56.6]} 23... Rc4
{[%clk 0:01:20.1]} 24. Rd4 {[%clk 0:00:47.8]} 24... f5 {[%clk 0:01:12]} 25. Qg5
{[%clk 0:00:35.6]} 25... Rxd4 {[%clk 0:01:11.9]} 26. cxd4 {[%clk 0:00:35.5]}
26... Qxd4 {[%clk 0:01:11.4]} 27. Rc1 {[%clk 0:00:33]} 27... Qf6 {[%clk
0:00:59.7]} 28. Qxf6 {[%clk 0:00:30.9]} 28... Rxf6 {[%clk 0:01:00.6]} 29. Rc8+
{[%clk 0:00:30.3]} 29... Kh7 {[%clk 0:00:55.9]} 30. Bf4 {[%clk 0:00:28.2]} 30...
Rf7 {[%clk 0:00:41.2]} 31. Be5 {[%clk 0:00:26.9]} 31... Rd7 {[%clk 0:00:34.5]}
32. g4 {[%clk 0:00:19.4]} 32... fxg4 {[%clk 0:00:29.1]} 33. hxg4 {[%clk
0:00:19.9]} 33... Be4 {[%clk 0:00:29.5]} 34. Kh2 {[%clk 0:00:16.7]} 34... Kg6
{[%clk 0:00:29.5]} 35. Kg3 {[%clk 0:00:15.6]} 35... Bd5 {[%clk 0:00:23.3]} 36.
f4 {[%clk 0:00:13.8]} 36... Be4 {[%clk 0:00:21.9]} 37. Kh4 {[%clk 0:00:13.3]}
37... Bd3 {[%clk 0:00:13.1]} 38. Rg8 {[%clk 0:00:12.2]} 38... Bc2 {[%clk
0:00:11.5]} 39. Bc3 {[%clk 0:00:11.2]} 39... a6 {[%clk 0:00:10.7]} 40. Be5
{[%clk 0:00:11.5]} 40... b5 {[%clk 0:00:10.3]} 41. Ra8 {[%clk 0:00:12]} 41...
Bd3 {[%clk 0:00:07]} 42. Rxa6 {[%clk 0:00:11.6]} 42... Kf7 {[%clk 0:00:06.6]}
43. Ra8 {[%clk 0:00:09.7]} 43... Be4 {[%clk 0:00:05.8]} 44. Rb8 {[%clk
0:00:08.5]} 44... Bd3 {[%clk 0:00:04.8]} 45. Kg5 {[%clk 0:00:09.1]} 45... Be2
{[%clk 0:00:03.1]} 46. f5 {[%clk 0:00:08.9]} 46... exf5 {[%clk 0:00:03.4]} 47.
gxf5 {[%clk 0:00:08.2]} 47... Bd3 {[%clk 0:00:03.6]} 48. Rb6 {[%clk 0:00:03.8]}
48... Bc4 {[%clk 0:00:03.7]} 49. Kf4 {[%clk 0:00:03.5]} 49... Bd3 {[%clk
0:00:02.9]} 50. Kg5 {[%clk 0:00:02.6]} 50... Bc4 {[%clk 0:00:03]} 51. Rg6 {[%clk
0:00:00.9]} 51... Bd3 {[%clk 0:00:02.4]} 52. Rxg7+ {[%clk 0:00:01]} 52... Ke8
{[%clk 0:00:03.3]} 53. Rxd7 {[%clk 0:00:01.4]} 53... Kxd7 {[%clk 0:00:03.3]} 54.
f6 {[%clk 0:00:01.7]} 54... Ke8 {[%clk 0:00:03.5]} 55. Bc3 {[%clk 0:00:01.3]}
55... Kf7 {[%clk 0:00:03.7]} 56. Bb4 {[%clk 0:00:00.7]} 56... Bc2 {[%clk
0:00:03.9]} 0-1

[Event "*** Titled Tuesday Blitz"]
[Site "Chess.com"]
[Date "2020.04.28"]
[Round "3"]
[White "MatijaOlimpiakosIvic"]
[Black "suyu28"]
[Result "1/2-1/2"]
[WhiteElo "2767"]
[BlackElo "2602"]
[TimeControl "180+1"]
[EndTime "10:31:05 PDT"]
[Termination "Game drawn by stalemate"]

1. Nf3 {[%clk 0:03:00.9]} 1... d5 {[%clk 0:02:59.9]} 2. c4 {[%clk 0:03:01.3]}
2... c6 {[%clk 0:02:59.7]} 3. Qc2 {[%clk 0:03:01.4]} 3... Nf6 {[%clk 0:02:58.6]}
4. g3 {[%clk 0:03:01.9]} 4... g6 {[%clk 0:02:58.1]} 5. Bg2 {[%clk 0:03:02.4]}
5... Bg7 {[%clk 0:02:58.3]} 6. O-O {[%clk 0:03:02.5]} 6... O-O {[%clk
0:02:58.9]} 7. b3 {[%clk 0:03:03]} 7... a5 {[%clk 0:02:48.5]} 8. a3 {[%clk
0:02:59.7]} 8... Bg4 {[%clk 0:02:37]} 9. Bb2 {[%clk 0:02:59]} 9... Nbd7 {[%clk
0:02:37]} 10. d3 {[%clk 0:02:57.5]} 10... e6 {[%clk 0:02:35.2]} 11. Nbd2 {[%clk
0:02:54.1]} 11... Re8 {[%clk 0:02:34.5]} 12. h3 {[%clk 0:02:53.1]} 12... Bxf3
{[%clk 0:02:33.8]} 13. Nxf3 {[%clk 0:02:54]} 13... e5 {[%clk 0:02:32.5]} 14.
Rac1 {[%clk 0:02:52.3]} 14... Qb6 {[%clk 0:02:26.7]} 15. e3 {[%clk 0:02:45.5]}
15... Rad8 {[%clk 0:01:51.9]} 16. Bc3 {[%clk 0:02:41.7]} 16... e4 {[%clk
0:01:42.1]} 17. dxe4 {[%clk 0:02:40.9]} 17... Nxe4 {[%clk 0:01:40.4]} 18. Bxg7
{[%clk 0:02:40.5]} 18... Kxg7 {[%clk 0:01:41.3]} 19. cxd5 {[%clk 0:02:40.2]}
19... cxd5 {[%clk 0:01:42.2]} 20. Rfd1 {[%clk 0:02:40.1]} 20... Ndf6 {[%clk
0:01:39.1]} 21. Qb2 {[%clk 0:02:38.2]} 21... Kg8 {[%clk 0:01:37.4]} 22. Nd4
{[%clk 0:02:32]} 22... h5 {[%clk 0:01:31.4]} 23. Qc2 {[%clk 0:02:23.3]} 23...
Qd6 {[%clk 0:01:08.3]} 24. Nb5 {[%clk 0:02:12.2]} 24... Qd7 {[%clk 0:01:04.3]}
25. Nd4 {[%clk 0:02:02.2]} 25... Qe7 {[%clk 0:00:53.8]} 26. Qc7 {[%clk
0:01:53.9]} 26... Qxa3 {[%clk 0:00:52.8]} 27. Qxb7 {[%clk 0:01:41.9]} 27... Rb8
{[%clk 0:00:52.4]} 28. Qa6 {[%clk 0:01:39.9]} 28... Ra8 {[%clk 0:00:47.6]} 29.
Qc6 {[%clk 0:01:34.1]} 29... Rab8 {[%clk 0:00:43]} 30. Rc2 {[%clk 0:01:26.4]}
30... Qb4 {[%clk 0:00:40.6]} 31. Ra1 {[%clk 0:01:21.2]} 31... Kg7 {[%clk
0:00:26.8]} 32. Qc7 {[%clk 0:01:11.9]} 32... Rec8 {[%clk 0:00:20]} 33. Ne6+
{[%clk 0:00:53.3]} 33... Kg8 {[%clk 0:00:19.6]} 34. Qxc8+ {[%clk 0:00:51.7]}
34... Rxc8 {[%clk 0:00:20.5]} 35. Rxc8+ {[%clk 0:00:52.5]} 35... Kh7 {[%clk
0:00:21]} 36. Nd4 {[%clk 0:00:43.7]} 36... Qd2 {[%clk 0:00:16.9]} 37. Rc2 {[%clk
0:00:41.2]} 37... Qb4 {[%clk 0:00:17.5]} 38. Rac1 {[%clk 0:00:35.7]} 38... a4
{[%clk 0:00:14.8]} 39. bxa4 {[%clk 0:00:36]} 39... Qxa4 {[%clk 0:00:15.1]} 40.
Rc7 {[%clk 0:00:36.7]} 40... Qa2 {[%clk 0:00:11.8]} 41. R7c2 {[%clk 0:00:18.9]}
41... Qa3 {[%clk 0:00:09.3]} 42. Rc7 {[%clk 0:00:18.2]} 42... Qa2 {[%clk
0:00:08.8]} 43. R1c2 {[%clk 0:00:18.4]} 43... Qa1+ {[%clk 0:00:08.2]} 44. Kh2
{[%clk 0:00:18.7]} 44... Ng5 {[%clk 0:00:07.9]} 45. f4 {[%clk 0:00:14.7]} 45...
Nge4 {[%clk 0:00:08.2]} 46. Rxf7+ {[%clk 0:00:14.3]} 46... Kh6 {[%clk
0:00:08.7]} 47. Ne6 {[%clk 0:00:11.5]} 47... Qe1 {[%clk 0:00:08.1]} 48. Ng5
{[%clk 0:00:04.9]} 48... Qxg3+ {[%clk 0:00:07.4]} 49. Kg1 {[%clk 0:00:05.4]}
49... Qxe3+ {[%clk 0:00:07.3]} 50. Kh1 {[%clk 0:00:05.2]} 50... Qe1+ {[%clk
0:00:06.2]} 51. Kh2 {[%clk 0:00:05.5]} 51... Qg3+ {[%clk 0:00:06.8]} 52. Kg1
{[%clk 0:00:05.9]} 52... Nxg5 {[%clk 0:00:05.4]} 53. fxg5+ {[%clk 0:00:06.8]}
53... Qxg5 {[%clk 0:00:05.9]} 54. Rcc7 {[%clk 0:00:06.7]} 54... Qe3+ {[%clk
0:00:05.9]} 55. Kh2 {[%clk 0:00:06.9]} 55... Qe5+ {[%clk 0:00:06.2]} 56. Kh1
{[%clk 0:00:07.4]} 56... h4 {[%clk 0:00:06.6]} 57. Rce7 {[%clk 0:00:07.6]} 57...
Qf4 {[%clk 0:00:05]} 58. Re6 {[%clk 0:00:06.9]} 58... Kg5 {[%clk 0:00:04.4]} 59.
Rexf6 {[%clk 0:00:06.4]} 59... Qxf6 {[%clk 0:00:05.3]} 60. Rxf6 {[%clk
0:00:06.5]} 60... Kxf6 {[%clk 0:00:06.2]} 61. Bxd5 {[%clk 0:00:07.1]} 61... Ke5
{[%clk 0:00:06.7]} 62. Bf7 {[%clk 0:00:07.3]} 62... Kf4 {[%clk 0:00:06.5]} 63.
Bxg6 {[%clk 0:00:06.8]} 63... Kg3 {[%clk 0:00:06.2]} 64. Bf5 {[%clk 0:00:07]}
64... Kf4 {[%clk 0:00:07.1]} 65. Bd7 {[%clk 0:00:07]} 65... Kg5 {[%clk 0:00:08]}
66. Kg2 {[%clk 0:00:07.3]} 66... Kh6 {[%clk 0:00:08.9]} 67. Kf3 {[%clk
0:00:07.8]} 67... Kg7 {[%clk 0:00:09.8]} 68. Kg4 {[%clk 0:00:08.3]} 68... Kh8
{[%clk 0:00:10.7]} 69. Kg5 {[%clk 0:00:08.5]} 69... Kg7 {[%clk 0:00:11.6]} 70.
Be6 {[%clk 0:00:08.7]} 70... Kh8 {[%clk 0:00:12.5]} 71. Kxh4 {[%clk 0:00:08.5]}
71... Kg7 {[%clk 0:00:13.4]} 72. Kg5 {[%clk 0:00:09.1]} 72... Kh8 {[%clk
0:00:14.3]} 73. h4 {[%clk 0:00:09.8]} 73... Kg7 {[%clk 0:00:15.2]} 74. h5 {[%clk
0:00:10.3]} 74... Kh8 {[%clk 0:00:16.1]} 75. h6 {[%clk 0:00:10.7]} 75... Kh7
{[%clk 0:00:16.3]} 76. Bf5+ {[%clk 0:00:11.2]} 76... Kh8 {[%clk 0:00:16.7]} 77.
Kf6 {[%clk 0:00:11.6]} 77... Kg8 {[%clk 0:00:15.7]} 78. Kg6 {[%clk 0:00:12.2]}
78... Kh8 {[%clk 0:00:16.1]} 79. h7 {[%clk 0:00:12.5]} 1/2-1/2

[Event "*** Titled Tuesday Blitz"]
[Site "Chess.com"]
[Date "2020.04.28"]
[Round "3"]
[White "KarstenHansch"]
[Black "Teidi96"]
[Result "1-0"]
[WhiteElo "2455"]
[BlackElo "2243"]
[TimeControl "180+1"]
[EndTime "10:31:35 PDT"]
[Termination "KarstenHansch won by resignation"]

1. e4 {[%clk 0:03:00.9]} 1... e5 {[%clk 0:02:59.1]} 2. Nf3 {[%clk 0:03:01.1]}
2... Nc6 {[%clk 0:02:59.7]} 3. Bb5 {[%clk 0:03:01.6]} 3... a6 {[%clk 0:03:00]}
4. Ba4 {[%clk 0:03:01.6]} 4... Nf6 {[%clk 0:03:00.6]} 5. O-O {[%clk 0:03:01.4]}
5... Be7 {[%clk 0:03:01.2]} 6. Re1 {[%clk 0:02:58.8]} 6... b5 {[%clk 0:03:01.7]}
7. Bb3 {[%clk 0:02:58.6]} 7... O-O {[%clk 0:03:02.4]} 8. a4 {[%clk 0:02:58.6]}
8... Bb7 {[%clk 0:02:58.3]} 9. d3 {[%clk 0:02:57.6]} 9... d6 {[%clk 0:02:55.8]}
10. Nbd2 {[%clk 0:02:52.6]} 10... h6 {[%clk 0:02:53.9]} 11. Nf1 {[%clk 0:02:50]}
11... Na5 {[%clk 0:02:46.2]} 12. Ba2 {[%clk 0:02:49.9]} 12... c5 {[%clk
0:02:46.6]} 13. c3 {[%clk 0:02:43.4]} 13... Nc6 {[%clk 0:02:42.3]} 14. Bd2
{[%clk 0:02:19.7]} 14... Re8 {[%clk 0:02:40.1]} 15. Ne3 {[%clk 0:02:10.4]} 15...
Bf8 {[%clk 0:02:36.6]} 16. axb5 {[%clk 0:02:06.1]} 16... axb5 {[%clk 0:02:35.8]}
17. b4 {[%clk 0:02:06.6]} 17... cxb4 {[%clk 0:02:18.1]} 18. cxb4 {[%clk
0:02:05.2]} 18... Qb6 {[%clk 0:02:05.4]} 19. Nf5 {[%clk 0:01:39.5]} 19... Ne7
{[%clk 0:01:55.3]} 20. Be3 {[%clk 0:01:07.4]} 20... Qd8 {[%clk 0:01:53.8]} 21.
Qb3 {[%clk 0:01:04.5]} 21... d5 {[%clk 0:01:45.5]} 22. Nxe7+ {[%clk 0:00:56.7]}
22... Qxe7 {[%clk 0:01:39.5]} 23. Bc5 {[%clk 0:00:48.7]} 23... Qd7 {[%clk
0:01:39.4]} 24. Rac1 {[%clk 0:00:38.4]} 24... d4 {[%clk 0:01:23.1]} 25. Bxf8
{[%clk 0:00:34.8]} 25... Kxf8 {[%clk 0:01:23.4]} 26. Rc5 {[%clk 0:00:34.1]}
26... Rac8 {[%clk 0:00:27.4]} 27. Rec1 {[%clk 0:00:26.9]} 27... Ng8 {[%clk
0:00:15.6]} 28. Nxe5 {[%clk 0:00:23.1]} 28... Rxe5 {[%clk 0:00:14]} 29. Rxc8+
{[%clk 0:00:23]} 29... Bxc8 {[%clk 0:00:13.7]} 30. Rxc8+ {[%clk 0:00:22.4]}
30... Re8 {[%clk 0:00:13.2]} 31. Rc5 {[%clk 0:00:17.4]} 31... Nf6 {[%clk
0:00:11.6]} 32. f3 {[%clk 0:00:14.3]} 32... Kg8 {[%clk 0:00:10]} 33. e5 {[%clk
0:00:14.1]} 33... Nh5 {[%clk 0:00:08.7]} 34. Rd5 {[%clk 0:00:13.2]} 34... Qc7
{[%clk 0:00:07.8]} 35. Rxb5 {[%clk 0:00:10.8]} 35... Re7 {[%clk 0:00:07.6]} 36.
Rc5 {[%clk 0:00:10.1]} 36... Qd7 {[%clk 0:00:03.9]} 37. Qd5 {[%clk 0:00:09.9]}
37... Qa7 {[%clk 0:00:02.7]} 38. Rc8+ {[%clk 0:00:08.9]} 38... Kh7 {[%clk
0:00:02.3]} 39. Qe4+ {[%clk 0:00:08.8]} 39... g6 {[%clk 0:00:02.8]} 40. Bb1
{[%clk 0:00:07.4]} 40... Kg7 {[%clk 0:00:02.7]} 41. Rc1 {[%clk 0:00:05]} 41...
Qa3 {[%clk 0:00:01.8]} 42. Re1 {[%clk 0:00:04.5]} 42... Qxb4 {[%clk 0:00:02]}
43. g4 {[%clk 0:00:04.4]} 43... Qc3 {[%clk 0:00:02]} 44. gxh5 {[%clk 0:00:04.1]}
44... gxh5 {[%clk 0:00:02.9]} 45. Kf2 {[%clk 0:00:03.4]} 45... Re6 {[%clk
0:00:03.8]} 46. Rg1+ {[%clk 0:00:03.3]} 46... Rg6 {[%clk 0:00:03.4]} 47. Rxg6+
{[%clk 0:00:02.9]} 47... fxg6 {[%clk 0:00:02.3]} 48. e6 {[%clk 0:00:02.5]} 48...
Kf6 {[%clk 0:00:02.2]} 49. e7 {[%clk 0:00:02.5]} 49... Qb2+ {[%clk 0:00:02.8]}
50. Qe2 {[%clk 0:00:02.6]} 50... Qxe2+ {[%clk 0:00:02.5]} 51. Kxe2 {[%clk
0:00:03.1]} 51... Kxe7 {[%clk 0:00:03.4]} 52. Bc2 {[%clk 0:00:03.6]} 52... Kf6
{[%clk 0:00:04.1]} 53. Bb3 {[%clk 0:00:04.5]} 53... Ke5 {[%clk 0:00:04.6]} 54.
Bc4 {[%clk 0:00:05.4]} 54... g5 {[%clk 0:00:05.1]} 55. Kf2 {[%clk 0:00:06.3]}
55... h4 {[%clk 0:00:06]} 56. Kg2 {[%clk 0:00:07.2]} 56... h5 {[%clk 0:00:06.3]}
57. Kf2 {[%clk 0:00:08.1]} 57... g4 {[%clk 0:00:07.2]} 58. Kg2 {[%clk 0:00:09]}
58... Kf4 {[%clk 0:00:05.8]} 59. fxg4 {[%clk 0:00:09.9]} 59... hxg4 {[%clk
0:00:05.7]} 60. h3 {[%clk 0:00:10.8]} 60... g3 {[%clk 0:00:05.8]} 61. Bd5 {[%clk
0:00:10.4]} 61... Ke3 {[%clk 0:00:06.3]} 62. Be4 {[%clk 0:00:10.7]} 62... Kf4
{[%clk 0:00:06.5]} 63. Kf1 {[%clk 0:00:11]} 63... Ke3 {[%clk 0:00:06.9]} 64. Kg2
{[%clk 0:00:11.3]} 64... Ke2 {[%clk 0:00:06.6]} 65. Bh7 {[%clk 0:00:11.1]} 65...
Ke3 {[%clk 0:00:06.7]} 66. Bg6 {[%clk 0:00:11]} 66... Ke2 {[%clk 0:00:07]} 67.
Be4 {[%clk 0:00:11]} 67... Ke3 {[%clk 0:00:07.3]} 68. Bf5 {[%clk 0:00:10.7]}
68... Ke2 {[%clk 0:00:07.7]} 69. Bg4+ {[%clk 0:00:08.4]} 69... Ke3 {[%clk
0:00:08]} 70. Bh5 {[%clk 0:00:08.1]} 70... Kf4 {[%clk 0:00:07]} 71. Kf1 {[%clk
0:00:07.9]} 71... Ke3 {[%clk 0:00:06.8]} 72. Be2 {[%clk 0:00:07.7]} 72... Kf4
{[%clk 0:00:05.5]} 73. Bh5 {[%clk 0:00:07.5]} 73... Ke3 {[%clk 0:00:05.6]} 74.
Bg6 {[%clk 0:00:07.8]} 74... Kf4 {[%clk 0:00:05]} 75. Ke2 {[%clk 0:00:07.1]}
75... Kg5 {[%clk 0:00:04.2]} 76. Be4 {[%clk 0:00:07.1]} 76... Kf4 {[%clk
0:00:04.5]} 77. Bh7 {[%clk 0:00:07.2]} 77... Kg5 {[%clk 0:00:03]} 78. Kf3 {[%clk
0:00:07.5]} 78... Kf6 {[%clk 0:00:01.5]} 79. Be4 {[%clk 0:00:07.6]} 79... Kg5
{[%clk 0:00:01.8]} 80. Bd5 {[%clk 0:00:07.8]} 80... Kf6 {[%clk 0:00:02]} 81. Kg4
{[%clk 0:00:07.4]} 81... Ke5 {[%clk 0:00:01.8]} 82. Be4 {[%clk 0:00:07.6]} 82...
Kf6 {[%clk 0:00:01.2]} 83. Kxh4 {[%clk 0:00:07.9]} 83... g2 {[%clk 0:00:01.2]}
84. Bxg2 {[%clk 0:00:07.7]} 84... Ke5 {[%clk 0:00:01.5]} 85. Be4 {[%clk
0:00:08.6]} 85... Kf4 {[%clk 0:00:01.8]} 86. Kh5 {[%clk 0:00:08.4]} 86... Ke5
{[%clk 0:00:01.8]} 87. h4 {[%clk 0:00:08.7]} 87... Kf6 {[%clk 0:00:02.7]} 88.
Kg4 {[%clk 0:00:09]} 88... Kg7 {[%clk 0:00:03.6]} 89. Kf4 {[%clk 0:00:09.4]}
89... Kh6 {[%clk 0:00:04.3]} 90. Ke5 {[%clk 0:00:10.3]} 1-0